fUST/lending_fUST_20250901
["ID","MTS","AMOUNT","RATE_DAILY","PERIOD"]
[382669781,1756703445135,-206.140437,0.00014382,2]
[382669782,1756703445144,-151.0,0.00014382,2]
[382669783,1756703445154,-151.0,0.00014382,2]
[382669784,1756703445163,-296.855791,0.00014382,2]
[382669785,1756703445173,-1025.18,0.00014382,2]
[382669786,1756703445182,-183.492138,0.00014382,2]
[382669787,1756703445192,-151.0,0.00014382,2]
[382669788,1756703445201,-151.0,0.00014382,2]
[382669789,1756703445211,-151.0,0.00014382,2]
[382669790,1756703445220,-480.0,0.00014382,2]
[382669791,1756703445229,-480.0,0.00014382,2]
[382669792,1756703445239,-816.73,0.00014382,2]
[382669793,1756703445248,-278.677164,0.00014382,2]
[382669794,1756703445258,-278.677164,0.00014382,2]
[382669795,1756703445267,-278.677164,0.00014382,2]
[382669796,1756703445276,-278.677164,0.00014382,2]
[382669797,1756703445286,-278.677164,0.00014382,2]
[382669798,1756703445295,-278.677164,0.00014382,2]
[382669799,1756703445306,-278.677164,0.00014382,2]
[382669800,1756703445315,-278.677164,0.00014382,2]
[382669801,1756703445325,-278.677164,0.00014382,2]
[382669802,1756703445334,-278.677164,0.00014382,2]
[382669803,1756703445343,-278.677164,0.00014382,2]
[382669804,1756703445352,-278.677161,0.00014382,2]
[382669805,1756703445362,-151.0,0.00014382,2]
[382669806,1756703445371,-151.0,0.00014382,2]
[382669807,1756703445380,-168.636159,0.00014382,2]
[382669808,1756703445390,-154.132715,0.00014382,2]
[382669809,1756703445402,-151.0,0.00014382,2]
[382669810,1756703445412,-151.0,0.00014382,2]
[382669811,1756703445421,-151.0,0.00014382,2]
[382669812,1756703445431,-498.940558,0.00014382,2]
[382669813,1756703445441,-151.0,0.00014382,2]
[382669814,1756703445451,-498.940558,0.00014382,2]
[382669815,1756703445461,-151.0,0.00014382,2]
[382669816,1756703445470,-498.940558,0.00014382,2]
[382669817,1756703445482,-186.530103,0.00014382,2]
[382669818,1756703445492,-498.940558,0.00014382,2]
[382669819,1756703445502,-498.940558,0.00014382,2]
[382669820,1756703445512,-498.940558,0.00014382,2]
[382669821,1756703445522,-498.940558,0.00014382,2]
[382669822,1756703445532,-498.940558,0.00014382,2]
[382669823,1756703445542,-498.940558,0.00014382,2]
[382669824,1756703445552,-498.940558,0.00014382,2]
[382669825,1756703445561,-498.940558,0.00014382,2]
[382669826,1756703445570,-498.940568,0.00014382,2]
[382669827,1756703445580,-480.0,0.00014382,2]
[382669828,1756703445589,-151.0,0.00014382,2]
[382669829,1756703445599,-480.0,0.00014382,2]
[382669830,1756703445608,-492.23,0.00014382,2]
[382669831,1756703445617,-480.0,0.00014382,2]
[382669832,1756703445627,-984.3,0.00014382,2]
[382669833,1756703445636,-970.14,0.00014382,2]
[382669834,1756703445648,-1029.66,0.00014382,2]
[382669835,1756703445657,-480.0,0.00014382,2]
[382669836,1756703445667,-480.0,0.00014382,2]
[382669837,1756703445676,-535.38,0.00014382,2]
[382669838,1756703445685,-160.604832,0.00014382,2]
[382669839,1756703445695,-160.604832,0.00014382,2]
[382669840,1756703445705,-160.604832,0.00014382,2]
[382669841,1756703445715,-160.604832,0.00014382,2]
[382669842,1756703445724,-160.604832,0.00014382,2]
[382669843,1756703445733,-160.604832,0.00014382,2]
[382669844,1756703445743,-160.604832,0.00014382,2]
[382669845,1756703445753,-160.604839,0.00014382,2]
[382669846,1756703445762,-480.0,0.00014382,2]
[382669847,1756703445772,-1050.8,0.00014382,2]
[382669848,1756703445782,-151.0,0.00014382,2]
[382669849,1756703445791,-151.0,0.00014382,2]
[382669850,1756703445801,-151.0,0.00014382,2]
[382669851,1756703445810,-151.0,0.00014382,2]
[382669852,1756703445819,-576.23,0.00014382,2]
[382669853,1756703445828,-151.0,0.00014382,2]
[382669854,1756703445838,-151.0,0.00014382,2]
[382669855,1756703445847,-151.0,0.00014382,2]
[382669856,1756703445857,-151.0,0.00014382,2]
[382669857,1756703445866,-151.0,0.00014382,2]
[382669858,1756703445875,-151.0,0.00014382,2]
[382669859,1756703445885,-151.0,0.00014382,2]
[382669860,1756703445895,-152.601651,0.00014382,2]
[382669861,1756703445905,-213.907037,0.00014382,2]
[382669862,1756703445914,-213.907037,0.00014382,2]
[382669863,1756703445925,-276.040837,0.00014382,2]
[382669864,1756703445937,-213.907037,0.00014382,2]
[382669865,1756703445947,-213.907037,0.00014382,2]
[382669866,1756703445956,-151.0,0.00014383,2]
[382669867,1756703445966,-151.0,0.00014383,2]
[382669868,1756703445977,-151.0,0.00014383,2]
[382669869,1756703445987,-270.515282,0.00014383,2]
[382669870,1756703445996,-252.0223145,0.00014383,2]
[382669871,1756703446008,-151.0,0.00014383,2]
[382669872,1756703446017,-284.300809,0.00014383,2]
[382669873,1756703446027,-151.0,0.00014383,2]
[382669874,1756703446036,-151.0,0.00014383,2]
[382669875,1756703446046,-441.30670052,0.00014383,2]
[382669876,1756703446056,-151.0,0.00014383,2]
[382669877,1756703446065,-151.0,0.00014383,2]
[382669878,1756703446075,-151.464156,0.00014383,2]
[382669879,1756703446084,-151.0,0.00014383,2]
[382669880,1756703446095,-151.0,0.00014383,2]
[382669881,1756703446104,-151.467687,0.00014383,2]
[382669882,1756703446114,-151.0,0.00014383,2]
[382669883,1756703446123,-151.0,0.00014383,2]
[382669884,1756703446133,-151.0,0.00014383,2]
[382669885,1756703446142,-151.0,0.00014383,2]
[382669886,1756703446154,-151.0,0.00014383,2]
[382669887,1756703446163,-151.0,0.00014383,2]
[382669888,1756703446173,-151.656878,0.00014383,2]
[382669889,1756703446183,-151.0,0.00014383,2]
[382669890,1756703446193,-185.501479,0.00014383,2]
[382669891,1756703446202,-151.0,0.00014383,2]
[382669892,1756703446211,-151.0,0.00014383,2]
[382669893,1756703446221,-151.0,0.00014383,2]
[382669894,1756703446230,-151.0,0.00014383,2]
[382669895,1756703446239,-151.0,0.00014383,2]
[382669896,1756703446250,-151.0,0.00014383,2]
[382669897,1756703446260,-151.0,0.00014383,2]
[382669898,1756703446270,-151.0,0.00014383,2]
[382669899,1756703446281,-153.354446,0.00014383,2]
[382669900,1756703446290,-480.0,0.00014383,2]
[382669901,1756703446300,-151.0,0.00014383,2]
[382669902,1756703446310,-151.0,0.00014383,2]
[382669903,1756703446320,-151.0,0.00014383,2]
[382669904,1756703446330,-296.769354,0.00014383,2]
[382669905,1756703446340,-714.62,0.00014383,2]
[382669906,1756703446350,-151.0,0.00014383,2]
[382669907,1756703446360,-151.0,0.00014383,2]
[382669908,1756703446369,-151.0,0.00014383,2]
[382669909,1756703446379,-151.0,0.00014383,2]
[382669910,1756703446388,-151.0,0.00014383,2]
[382669911,1756703446399,-151.0,0.00014383,2]
[382669912,1756703446408,-151.0,0.00014383,2]
[382669913,1756703446418,-151.0,0.00014383,2]
[382669914,1756703446427,-151.0,0.00014383,2]
[382669915,1756703446436,-1016.13,0.00014383,2]
[382669916,1756703446445,-151.0,0.00014383,2]
[382669917,1756703446455,-151.0,0.00014383,2]
[382669918,1756703446465,-159.919406,0.00014383,2]
[382669919,1756703446475,-969.6,0.00014383,2]
[382669920,1756703446484,-480.0,0.00014383,2]
[382669921,1756703446493,-151.0,0.00014383,2]
[382669922,1756703446503,-151.0,0.00014383,2]
[382669923,1756703446513,-480.0,0.00014383,2]
[382669924,1756703446522,-156.210329,0.00014383,2]
[382669925,1756703446532,-614.56,0.00014383,2]
[382669926,1756703446541,-154.442497,0.00014383,2]
[382669927,1756703446551,-574.27,0.00014383,2]
[382669928,1756703446560,-480.0,0.00014383,2]
[382669929,1756703446569,-560.14,0.00014383,2]
[382669930,1756703446578,-480.0,0.00014383,2]
[382669931,1756703446587,-480.0,0.00014383,2]
[382669932,1756703446597,-806.36,0.00014383,2]
[382669933,1756703446606,-480.0,0.00014383,2]
[382669934,1756703446616,-543.83,0.00014383,2]
[382669935,1756703446625,-480.0,0.00014383,2]
[382669936,1756703446635,-480.0,0.00014383,2]
[382669937,1756703446645,-480.0,0.00014383,2]
[382669938,1756703446655,-480.0,0.00014383,2]
[382669939,1756703446664,-480.0,0.00014383,2]
[382669940,1756703446673,-840.13,0.00014383,2]
[382669941,1756703446683,-789.06,0.00014383,2]
[382669942,1756703446692,-480.0,0.00014383,2]
[382669943,1756703446701,-1405.53,0.00014383,2]
[382669944,1756703446710,-480.0,0.00014383,2]
[382669945,1756703446719,-346.94896235,0.00014383,2]
[382669946,1756703446729,-480.0,0.00014383,2]
[382669947,1756703446739,-480.0,0.00014383,2]
[382669948,1756703446748,-567.43,0.00014383,2]
[382669949,1756703446758,-480.0,0.00014383,2]
[382669950,1756703446768,-480.0,0.00014383,2]
[382669951,1756703446778,-480.0,0.00014383,2]
[382669952,1756703446788,-480.0,0.00014383,2]
[382669953,1756703446797,-335.59175365,0.00014383,2]
[382669954,1756703446807,-480.0,0.00014384,2]
[382669955,1756703446816,-480.0,0.00014384,2]
[382669956,1756703446826,-480.0,0.00014384,2]
[382669957,1756703446835,-480.0,0.00014384,2]
[382669958,1756703446844,-480.0,0.00014384,2]
[382669959,1756703446853,-492.4909545,0.00014384,2]
[382669960,1756703446863,-151.0,0.00014384,2]
[382669961,1756703446872,-151.0,0.00014384,2]
[382669962,1756703446881,-480.0,0.00014384,2]
[382669963,1756703446890,-708.26,0.00014384,2]
[382669964,1756703446901,-668.39,0.00014384,2]
[382669965,1756703446910,-480.0,0.00014384,2]
[382669966,1756703446919,-480.0,0.00014384,2]
[382669968,1756703446932,-480.0,0.00014384,2]
[382669969,1756703446941,-480.0,0.00014384,2]
[382669971,1756703446950,-482.32835045,0.00014384,2]
[382669972,1756703446961,-480.0,0.00014384,2]
[382669974,1756703446972,-155.579698,0.00014384,2]
[382669975,1756703446981,-482.32302957,0.00014384,2]
[382669976,1756703446991,-480.0,0.00014384,2]
[382669977,1756703447000,-480.0,0.00014384,2]
[382669978,1756703447012,-480.0,0.00014384,2]
[382669979,1756703447022,-195.389863,0.00014384,2]
[382669980,1756703447031,-480.0,0.00014384,2]
[382669981,1756703447040,-480.0,0.00014384,2]
[382669982,1756703447051,-480.0,0.00014384,2]
[382669983,1756703447060,-824.12,0.00014384,2]
[382669984,1756703447069,-480.0,0.00014384,2]
[382669985,1756703447078,-480.61676135,0.00014384,2]
[382669986,1756703447087,-497.62,0.00014384,2]
[382669987,1756703447098,-480.0,0.00014384,2]
[382669988,1756703447108,-578.06,0.00014384,2]
[382669989,1756703447117,-480.0,0.00014384,2]
[382669990,1756703447128,-480.0,0.00014384,2]
[382669991,1756703447137,-480.0,0.00014384,2]
[382669992,1756703447148,-732.83,0.00014384,2]
[382669993,1756703447157,-480.0,0.00014384,2]
[382669994,1756703447167,-480.0,0.00014384,2]
[382669995,1756703447175,-151.0,0.00014384,2]
[382669997,1756703447184,-151.0,0.00014384,2]
[382669998,1756703447194,-151.0,0.00014384,2]
[382670000,1756703447203,-151.0,0.00014384,2]
[382670001,1756703447212,-480.0,0.00014384,2]
[382670002,1756703447221,-686.01,0.00014384,2]
[382670003,1756703447231,-480.0,0.00014384,2]
[382670004,1756703447241,-685.67,0.00014384,2]
[382670005,1756703447250,-480.0,0.00014384,2]
[382670006,1756703447260,-388.2519234,0.00014384,2]
[382670007,1756703447269,-480.0,0.00014384,2]
[382670008,1756703447279,-152.352164,0.00014384,2]
[382670009,1756703447288,-480.0,0.00014384,2]
[382670010,1756703447298,-480.0,0.00014384,2]
[382670011,1756703447307,-151.0,0.00014384,2]
[382670012,1756703447317,-151.0,0.00014384,2]
[382670013,1756703447329,-152.105409,0.00014384,2]
[382670014,1756703447338,-151.0,0.00014384,2]
[382670015,1756703447348,-151.0,0.00014384,2]
[382670016,1756703447358,-151.0,0.00014384,2]
[382670017,1756703447368,-151.0,0.00014384,2]
[382670018,1756703447378,-151.0,0.00014384,2]
[382670019,1756703447389,-480.0,0.00014384,2]
[382670020,1756703447401,-151.0,0.00014384,2]
[382670021,1756703447411,-151.0,0.00014384,2]
[382670022,1756703447421,-151.0,0.00014384,2]
[382670023,1756703447430,-151.0,0.00014384,2]
[382670024,1756703447440,-999.44,0.00014384,2]
[382670025,1756703447449,-480.0,0.00014384,2]
[382670026,1756703447459,-151.0,0.00014384,2]
[382670027,1756703447468,-151.0,0.00014384,2]
[382670028,1756703447478,-151.0,0.00014384,2]
[382670029,1756703447487,-237.591761,0.00014384,2]
[382670030,1756703447497,-151.0,0.00014384,2]
[382670031,1756703447507,-480.0,0.00014384,2]
[382670032,1756703447516,-480.0,0.00014384,2]
[382670033,1756703447527,-151.0,0.00014384,2]
[382670034,1756703447536,-151.0,0.00014384,2]
[382670035,1756703447546,-575.7,0.00014384,2]
[382670036,1756703447556,-153.302851,0.00014384,2]
[382670037,1756703447565,-489.55,0.00014384,2]
[382670038,1756703447574,-151.0,0.00014384,2]
[382670039,1756703447584,-151.0,0.00014384,2]
[382670040,1756703447593,-151.0,0.00014384,2]
[382670041,1756703447603,-155.218102,0.00014384,2]
[382670042,1756703447612,-1182.84,0.00014384,2]
[382670043,1756703447622,-480.0,0.00014384,2]
[382670044,1756703447631,-151.0,0.00014384,2]
[382670045,1756703447641,-151.0,0.00014384,2]
[382670046,1756703447654,-151.0,0.00014384,2]
[382670047,1756703447663,-151.0,0.00014384,2]
[382670048,1756703447672,-151.0,0.00014384,2]
[382670049,1756703447682,-480.0,0.00014384,2]
[382670050,1756703447691,-151.0,0.00014384,2]
[382670051,1756703447701,-244.533514,0.00014384,2]
[382670052,1756703447710,-151.0,0.00014384,2]
[382670053,1756703447720,-151.0,0.00014384,2]
[382670054,1756703447729,-151.0,0.00014384,2]
[382670055,1756703447739,-151.0,0.00014384,2]
[382670056,1756703447748,-151.0,0.00014384,2]
[382670057,1756703447758,-151.0,0.00014384,2]
[382670058,1756703447767,-480.0,0.00014384,2]
[382670059,1756703447776,-480.0,0.00014384,2]
[382670060,1756703447786,-153.44143,0.00014384,2]
[382670061,1756703447795,-728.12,0.00014384,2]
[382670062,1756703447804,-480.0,0.00014384,2]
[382670063,1756703447815,-524.04,0.00014384,2]
[382670064,1756703447825,-154.304176,0.00014384,2]
[382670065,1756703447834,-480.0,0.00014384,2]
[382670066,1756703447844,-480.0,0.00014384,2]
[382670067,1756703447854,-480.0,0.00014384,2]
[382670068,1756703447864,-480.0,0.00014384,2]
[382670069,1756703447874,-540.78,0.00014384,2]
[382670070,1756703447884,-480.0,0.00014384,2]
[382670071,1756703447893,-481.82742496,0.00014384,2]
[382670072,1756703447906,-482.7292335,0.00014384,2]
[382670073,1756703447915,-480.0,0.00014384,2]
[382670074,1756703447925,-480.0,0.00014384,2]
[382670075,1756703447937,-629.33,0.00014384,2]
[382670076,1756703447948,-480.0,0.00014384,2]
[382670077,1756703447957,-480.0,0.00014384,2]
[382670078,1756703447967,-526.68,0.00014384,2]
[382670079,1756703447977,-151.0,0.00014385,2]
[382670080,1756703447987,-294.511964,0.00014385,2]
[382670081,1756703447998,-220.448831,0.00014386,2]
[382670082,1756703448010,-151.0,0.000144,2]
[382670083,1756703448020,-509.6,0.000144,2]
[382670084,1756703448030,-509.6,0.00014415,2]
[382670085,1756703448040,-509.6,0.00014429,2]
[382670086,1756703448049,-5823.33784784,0.00014481,2]
[382670087,1756703448059,-7770.67896393,0.00014491,2]
[382670088,1756703448069,-151.0,0.000145,2]
[382670089,1756703448078,-261.47122878,0.00014503,2]
[382670090,1756703448088,-315.23532774,0.00014503,2]
[382670091,1756703448097,-339.98084838,0.00014503,2]
[382670092,1756703448107,-1259.68036966,0.00014503,2]
[382670093,1756703448117,-479.05124497,0.00014505,2]
[382670094,1756703448126,-480.0,0.00014505,2]
[382670095,1756703448136,-582.27,0.00014505,2]
[382670096,1756703448146,-508.3,0.00014505,2]
[382670097,1756703448156,-480.0,0.00014505,2]
[382670098,1756703448166,-630.83,0.00014506,2]
[382670099,1756703448176,-480.0,0.00014506,2]
[382670100,1756703448186,-480.0,0.00014506,2]
[382670101,1756703448195,-244.92250846,0.00014506,2]
[382670102,1756703448205,-480.0,0.00014506,2]
[382670103,1756703448215,-480.0,0.00014506,2]
[382670104,1756703448225,-801.68,0.00014506,2]
[382670105,1756703448236,-1519.51,0.00014506,2]
[382670106,1756703448246,-480.0,0.00014506,2]
[382670107,1756703448256,-766.49,0.00014506,2]
[382670108,1756703448265,-1363.92,0.00014506,2]
[382670109,1756703448275,-480.0,0.00014506,2]
[382670110,1756703448284,-480.0,0.00014506,2]
[382670111,1756703448294,-1189.82,0.00014506,2]
[382670112,1756703448304,-480.0,0.00014506,2]
[382670113,1756703448314,-480.0,0.00014506,2]
[382670114,1756703448323,-432.33251964,0.00014506,2]
[382670115,1756703448333,-480.0,0.00014506,2]
[382670116,1756703448343,-321.04621236,0.00014506,2]
[382670117,1756703448353,-480.0,0.00014506,2]
[382670118,1756703448363,-480.0,0.00014506,2]
[382670119,1756703448373,-629.46,0.00014506,2]
[382670120,1756703448383,-151.0,0.00014507,2]
[382670121,1756703448393,-500.0,0.00014507,2]
[382670122,1756703448404,-151.0,0.00014507,2]
[382670123,1756703448414,-480.0,0.00014508,2]
[382670124,1756703448424,-480.0,0.00014508,2]
[382670125,1756703448434,-1043.0,0.00014508,2]
[382670126,1756703448444,-570.88,0.00014508,2]
[382670127,1756703448454,-771.01,0.00014508,2]
[382670128,1756703448464,-827.81,0.00014508,2]
[382670129,1756703448475,-549.22,0.00014508,2]
[382670130,1756703448484,-480.0,0.00014508,2]
[382670131,1756703448494,-480.0,0.00014508,2]
[382670132,1756703448504,-480.0,0.00014508,2]
[382670133,1756703448513,-558.07,0.00014508,2]
[382670134,1756703448523,-480.0,0.00014508,2]
[382670135,1756703448533,-480.0,0.00014508,2]
[382670136,1756703448543,-480.0,0.00014508,2]
[382670137,1756703448553,-715.82,0.00014508,2]
[382670138,1756703448563,-673.93,0.00014508,2]
[382670139,1756703448573,-480.0,0.00014508,2]
[382670140,1756703448583,-482.7155595,0.00014508,2]
[382670141,1756703448593,-480.0,0.00014508,2]
[382670142,1756703448603,-480.0,0.00014508,2]
[382670143,1756703448613,-480.0,0.00014508,2]
[382670144,1756703448623,-500.0,0.00014509,2]
[382670145,1756703448634,-151.0,0.00014509,2]
[382670146,1756703448644,-151.0,0.00014509,2]
[382670147,1756703448654,-500.0,0.00014509,2]
[382670148,1756703448665,-241.51671019,0.00014509,2]
[382670149,1756703448674,-151.0,0.00014509,2]
[382670150,1756703448685,-151.0,0.00014509,2]
[382670151,1756703448695,-152.5779417,0.00014509,2]
[382670152,1756703448705,-151.0,0.00014509,2]
[382670153,1756703448715,-500.0,0.00014509,2]
[382670154,1756703448725,-480.0,0.00014509,2]
[382670155,1756703448735,-687.66,0.00014509,2]
[382670156,1756703448744,-234.7500719,0.00014509,2]
[382670157,1756703448755,-270.29730664,0.00014509,2]
[382670158,1756703448764,-480.0,0.00014509,2]
[382670159,1756703448774,-480.0,0.00014509,2]
[382670160,1756703448784,-480.0,0.00014509,2]
[382670161,1756703448794,-480.0,0.00014509,2]
[382670162,1756703448803,-580.85295363,0.00014509,2]
[382670163,1756703448813,-480.0,0.00014509,2]
[382670164,1756703448823,-480.0,0.00014509,2]
[382670165,1756703448833,-480.0,0.00014509,2]
[382670166,1756703448843,-480.0,0.00014509,2]
[382670167,1756703448853,-480.0,0.00014509,2]
[382670168,1756703448863,-480.0,0.00014509,2]
[382670169,1756703448873,-480.0,0.00014509,2]
[382670170,1756703448883,-480.0,0.00014509,2]
[382670171,1756703448892,-582.33758517,0.00014509,2]
[382670172,1756703448899,-627.14,0.00014509,2]
[382670173,1756703448906,-480.0,0.00014509,2]
[382670174,1756703448914,-480.0,0.00014509,2]
[382670175,1756703448920,-480.0,0.00014509,2]
[382670176,1756703448932,-480.0,0.00014509,2]
[382670177,1756703448942,-405.62251689,0.00014509,2]
[382670178,1756703448953,-480.0,0.00014509,2]
[382670179,1756703448962,-480.0,0.00014509,2]
[382670180,1756703448974,-497.55,0.00014509,2]
[382670181,1756703448983,-480.0,0.00014509,2]
[382670182,1756703448993,-641.8,0.00014509,2]
[382670183,1756703449003,-523.19,0.00014509,2]
[382670184,1756703449013,-534.36,0.00014509,2]
[382670185,1756703449023,-480.0,0.00014509,2]
[382670186,1756703449033,-480.0,0.00014509,2]
[382670187,1756703449043,-871.68,0.00014509,2]
[382670188,1756703449052,-480.0,0.00014509,2]
[382670189,1756703449062,-597.55,0.00014509,2]
[382670190,1756703449072,-666.04,0.00014509,2]
[382670191,1756703449082,-480.0,0.00014509,2]
[382670192,1756703449092,-480.0,0.00014509,2]
[382670193,1756703449101,-480.0,0.00014509,2]
[382670194,1756703449111,-688.86,0.00014509,2]
[382670195,1756703449122,-851.96,0.00014509,2]
[382670196,1756703449131,-577.03,0.00014509,2]
[382670197,1756703449141,-480.0,0.00014509,2]
[382670198,1756703449152,-480.0,0.00014509,2]
[382670199,1756703449162,-480.0,0.00014509,2]
[382670200,1756703449173,-482.47917028,0.00014509,2]
[382670201,1756703449182,-721.93,0.00014509,2]
[382670202,1756703449192,-480.0,0.00014509,2]
[382670203,1756703449203,-2822.86,0.00014509,2]
[382670204,1756703449212,-500.0,0.0001451,2]
[382670205,1756703449222,-500.0,0.00014511,2]
[382670206,1756703449232,-167.09735349,0.00014511,2]
[382670207,1756703449243,-151.0,0.00014511,2]
[382670208,1756703449254,-151.0,0.00014511,2]
[382670209,1756703449264,-480.0,0.00014512,2]
[382670210,1756703449275,-480.0,0.00014512,2]
[382670211,1756703449286,-480.0,0.00014512,2]
[382670212,1756703449297,-480.0,0.00014512,2]
[382670213,1756703449307,-480.0,0.00014512,2]
[382670214,1756703449318,-364.04326404,0.00014512,2]
[382670215,1756703449329,-480.0,0.00014512,2]
[382670216,1756703449340,-480.0,0.00014512,2]
[382670217,1756703449353,-481.71160706,0.00014512,2]
[382670218,1756703449363,-613.97902316,0.00014512,2]
[382670219,1756703449372,-480.0,0.00014512,2]
[382670220,1756703449382,-698.76,0.00014512,2]
[382670221,1756703449392,-480.0,0.00014512,2]
[382670222,1756703449403,-480.0,0.00014512,2]
[382670223,1756703449413,-480.0,0.00014512,2]
[382670224,1756703449423,-527.52009378,0.00014512,2]
[382670225,1756703449433,-480.0,0.00014512,2]
[382670226,1756703449443,-480.0,0.00014512,2]
[382670227,1756703449454,-482.23637897,0.00014512,2]
[382670228,1756703449643,-692.24,0.00014512,2]
[382670229,1756703449658,-722.02,0.00014512,2]
[382670230,1756703449667,-480.0,0.00014512,2]
[382670231,1756703449689,-997.72,0.00014512,2]
[382670232,1756703449699,-480.0,0.00014512,2]
[382670233,1756703449709,-480.0,0.00014512,2]
[382670234,1756703449719,-480.0,0.00014512,2]
[382670235,1756703449728,-480.0,0.00014512,2]
[382670236,1756703449738,-480.0,0.00014512,2]
[382670237,1756703449748,-480.0,0.00014512,2]
[382670238,1756703449757,-480.0,0.00014512,2]
[382670239,1756703449766,-480.0,0.00014512,2]
[382670240,1756703449776,-1039.33,0.00014512,2]
[382670241,1756703449785,-480.0,0.00014512,2]
[382670242,1756703449795,-480.0,0.00014512,2]
[382670243,1756703449804,-480.0,0.00014512,2]
[382670244,1756703449813,-480.0,0.00014512,2]
[382670245,1756703449823,-480.0,0.00014512,2]
[382670246,1756703449833,-948.45,0.00014512,2]
[382670247,1756703449842,-242.80644912,0.00014512,2]
[382670248,1756703449851,-480.0,0.00014512,2]
[382670249,1756703449861,-480.0,0.00014512,2]
[382670250,1756703449870,-480.0,0.00014512,2]
[382670251,1756703449879,-480.0,0.00014512,2]
[382670252,1756703449889,-480.0,0.00014512,2]
[382670253,1756703449898,-480.0,0.00014512,2]
[382670254,1756703449908,-647.12,0.00014512,2]
[382670255,1756703449917,-513.96,0.00014512,2]
[382670256,1756703449927,-480.0,0.00014512,2]
[382670257,1756703449938,-520.92,0.00014512,2]
[382670258,1756703449947,-480.0,0.00014512,2]
[382670259,1756703449956,-480.0,0.00014512,2]
[382670260,1756703449966,-480.0,0.00014512,2]
[382670261,1756703449976,-480.0,0.00014512,2]
[382670262,1756703449985,-480.0,0.00014512,2]
[382670263,1756703449994,-481.85405021,0.00014512,2]
[382670264,1756703450004,-480.0,0.00014512,2]
[382670265,1756703450014,-480.0,0.00014512,2]
[382670266,1756703450024,-482.11932971,0.00014512,2]
[382670267,1756703450033,-485.81,0.00014512,2]
[382670268,1756703450043,-1008.77,0.00014512,2]
[382670269,1756703450052,-480.0,0.00014512,2]
[382670270,1756703450062,-480.0,0.00014512,2]
[382670271,1756703450072,-480.0,0.00014512,2]
[382670272,1756703450081,-480.0,0.00014512,2]
[382670273,1756703450090,-480.0,0.00014512,2]
[382670274,1756703450099,-594.59,0.00014512,2]
[382670275,1756703450109,-480.0,0.00014512,2]
[382670276,1756703450118,-480.0,0.00014512,2]
[382670277,1756703450127,-480.0,0.00014512,2]
[382670278,1756703450136,-480.0,0.00014512,2]
[382670279,1756703450146,-480.0,0.00014512,2]
[382670280,1756703450157,-484.6,0.00014512,2]
[382670281,1756703450166,-480.0,0.00014512,2]
[382670282,1756703450176,-480.0,0.00014512,2]
[382670283,1756703450185,-899.7,0.00014512,2]
[382670284,1756703450194,-480.0,0.00014512,2]
[382670285,1756703450203,-989.5,0.00014512,2]